bitfinex-derivatives/quotes_ETHF0:USTF0_20251021
["timestamp","ask_amount","ask_price","bid_price","bid_amount"]
[1761088414739,1.1033,3902.4,3902.3,0.7525]
[1761088415137,1.1033,3902.4,3902.3,0.4494]
[1761088416043,0.46112,3902.1,3902.0,1.89261135]
[1761088416344,1.56442,3902.1,3902.0,0.3031]
[1761088416538,1.56442,3902.1,3902.0,0.7525]
[1761088417443,1.56442,3902.1,3902.0,1.2733]
[1761088417637,1.56442,3902.1,3902.0,1.086]
[1761088417844,0.77532,3902.1,3902.0,2.65171135]
[1761088418030,1.56442,3902.1,3902.0,0.7525]
[1761088418231,1.56442,3902.1,3902.0,0.4494]
[1761088418438,1.56446,3901.8,3901.7,0.3031]
[1761088418842,1.1033,3901.7,3901.6,1.37841135]
[1761088419146,1.56448,3901.6,3901.5,1.68151135]
[1761088419444,1.56452,3901.3,3901.2,10.94751135]
[1761088419639,1.56452,3901.3,3901.2,10.0185]
[1761088419837,1.56452,3901.3,3901.2,0.7525]
[1761088421148,1.56452,3901.3,3901.2,1.086]
[1761088421948,1.56452,3901.3,3901.2,0.7525]
[1761088422249,1.56454,3901.1,3901.0,0.49311919]
[1761088422945,1.56454,3901.1,3901.0,0.94251919]
[1761088423148,1.56454,3901.1,3901.0,0.00271919]
[1761088423345,0.46131,3900.5,3900.3,1.37841135]
[1761088423534,1.56469,3899.8,3899.7,0.7525]
[1761088423737,1.56469,3899.8,3899.2,3.2078]
[1761088423738,0.46144,3899.4,3899.3,0.7525]
[1761088423937,1.56474,3899.4,3899.3,0.7525]
[1761088424440,1.56698954,3899.4,3899.3,0.7553159]
[1761088425948,1.09368954,3899.4,3899.3,1.0888159]
[1761088426148,0.77788954,3899.4,3899.3,1.0888159]
[1761088426346,3.2078,3900.4,3899.3,6.0888159]
[1761088426545,0.63,3900.3,3900.2,0.6366]
[1761088426738,1.1033,3900.3,3900.2,0.6366]
[1761088426943,1.1033,3900.3,3900.2,0.3031]
[1761088427346,1.10589263,3900.3,3900.2,0.7525]
[1761088427651,1.10589263,3900.3,3900.2,1.086]
[1761088428848,1.56468,3899.9,3899.8,1.086]
[1761088429040,1.56468,3899.9,3899.8,0.7525]
[1761088429350,1.56472,3899.6,3899.5,0.4904]
[1761088429644,1.09142,3899.6,3899.5,0.8239]
[1761088429844,1.09142,3899.6,3899.5,1.2733]
[1761088434253,0.77562,3899.6,3899.5,1.2733]
[1761088434957,1.07035,3900.2,3900.1,1.0328]
[1761088435756,1.50205,3900.2,3900.1,1.0328]
[1761088436150,1.07035,3900.2,3900.1,1.0328]
[1761088436951,0.00259263,3900.3,3900.1,1.0328]
[1761088436952,0.46393263,3900.3,3900.1,1.0328]
[1761088437143,0.76793263,3900.3,3900.2,0.4392]
[1761088437348,1.50463263,3900.3,3900.2,0.7181]
[1761088438362,1.50206,3900.1,3900.0,0.4555]
[1761088438849,1.50206,3900.1,3900.0,0.8947]
[1761088440056,1.50206,3900.1,3900.0,1.2094]
[1761088440258,1.50206,3900.1,3900.0,1.0328]
[1761088441458,1.50206,3900.1,3900.0,0.4392]
[1761088441763,1.50206,3900.1,3900.0,0.7181]
[1761088442056,2.10356,3900.1,3900.0,0.7181]
[1761088442259,2.10356,3900.1,3900.0,1.2094]
[1761088442469,1.67186,3900.1,3900.0,1.2094]
[1761088442864,1.06286,3900.1,3900.0,1.2094]
[1761088443363,0.6015,3900.1,3900.0,1.2094]
[1761088443557,0.6015,3900.1,3900.0,1.67077]
[1761088443765,0.6015,3900.1,3900.0,1.2094]
[1761088443949,1.06286,3900.1,3900.0,1.2094]
[1761088444156,0.6015,3900.1,3900.0,1.2094]
[1761088444661,0.6015,3900.1,3900.0,4.87857]
[1761088446363,1.06286,3900.1,3900.0,9.4172]
[1761088446665,0.6015,3900.1,3900.0,9.4172]
[1761088446865,0.6015,3900.1,3900.0,4.4172]
[1761088447859,1e-08,3900.3,3900.2,1.49415]
[1761088448067,0.46124,3901.1,3901.0,1.2094]
[1761088448266,3.2078,3901.2,3901.0,0.7702]
[1761088448453,0.46121,3901.4,3901.3,0.3147]
[1761088448659,4.70962,3902.1,3902.0,0.7181]
[1761088449154,5.29266029,3902.1,3902.0,0.7181]
[1761088449964,4.7119267,3902.1,3902.0,0.7181]
[1761088450958,0.46118,3901.6,3901.5,0.1766]
[1761088451159,0.76518,3901.6,3901.5,0.7702]
[1761088451663,0.0023067,3902.1,3902.0,1.2094]
[1761088451862,3.2078,3903.0,3902.7,0.4392]
[1761088452068,3.66876,3903.5,3903.4,1.0328]
[1761088452271,3.97276,3903.5,3903.4,1.0328]
[1761088452563,4.27776,3903.5,3903.4,1.0328]
[1761088453070,4.2806518,3903.5,3903.4,1.03463648]
[1761088453362,3.6716518,3903.5,3903.4,1.03463648]
[1761088453954,3.9756518,3903.5,3903.4,1.03463648]
[1761088454864,4.8527518,3903.5,3903.4,0.00183648]
[1761088455456,4.8527518,3903.5,3902.3,3.2078]
[1761088455457,0.46109,3902.4,3902.3,3.8014]
[1761088455666,0.76509,3902.4,3902.3,3.8014]
[1761088456060,0.46109,3902.4,3902.3,4.2406]
[1761088456261,3.6395,3903.1,3902.3,4.2406]
[1761088456560,4.7095,3903.1,3903.0,0.7181]
[1761088457269,0.765,3903.1,3903.0,1.2094]
[1761088457463,0.461,3903.1,3903.0,1.2094]
[1761088457965,0.46099,3903.2,3903.1,0.4392]
[1761088458157,0.46099,3903.2,3903.1,1.0328]
[1761088459268,0.76499,3903.2,3903.1,1.0328]
[1761088459472,1.46389,3903.2,3903.1,1.0328]
[1761088459865,1.46389,3903.2,3903.1,0.7181]
[1761088460371,0.75406,3902.7,3902.6,0.5639]
[1761088460561,0.46106,3902.7,3902.6,0.5639]
[1761088460761,0.46106,3902.7,3902.6,1.0]
[1761088460962,12.4646918,3903.5,3903.4,0.2784]
[1761088461159,12.7365918,3903.5,3903.4,0.9515]
[1761088461671,3.4825918,3903.5,3903.4,0.9515]
[1761088461870,3.9435518,3903.5,3903.4,0.9515]
[1761088462067,0.4638518,3903.5,3903.4,0.9515]
[1761088463671,1.4360518,3903.5,3903.4,0.9515]
[1761088463873,1.0206,3903.1,3903.0,1.1219]
[1761088466273,1.0206,3903.1,3902.5,0.38002667]
[1761088466274,1.02065,3902.7,3902.6,0.9515]
[1761088466572,0.46105,3902.7,3902.6,0.9515]
[1761088468075,0.46104,3902.9,3902.7,0.3952]
[1761088468374,0.73294,3902.9,3902.8,0.9515]
[1761088470468,1.43324,3902.9,3902.8,0.9515]
[1761088470670,1.43326,3902.6,3902.5,0.455]
[1761088470871,0.73296,3902.6,3902.5,0.7329]
[1761088471073,0.46105,3902.7,3902.5,0.7329]
[1761088471281,0.46105,3902.7,3902.6,0.9515]
[1761088471778,1.02065,3902.7,3902.6,0.9515]
[1761088472174,0.73295,3902.7,3902.6,0.9515]
[1761088472482,1.43325,3902.7,3902.6,0.9515]
[1761088473573,1.43325,3902.7,3902.6,0.6736]
[1761088474473,1.43325,3902.7,3902.6,0.9515]
[1761088474982,1.43325,3902.7,3902.6,0.6736]
[1761088475285,1.43325,3902.7,3902.4,3.2078]
[1761088475286,0.46107,3902.5,3902.4,3.8814]
[1761088475581,1.43327,3902.5,3902.4,3.8814]
[1761088475977,0.46109,3902.4,3902.3,0.0023343]
[1761088476187,1.43329,3902.4,3902.3,0.6759343]
[1761088476374,1.43329,3902.4,3902.3,0.0023343]
[1761088476677,6.43329,3902.4,3902.3,0.0023343]
[1761088477183,1.43339,3901.5,3901.4,4.1593]
[1761088477678,1.43339,3901.5,3901.4,0.9515]
[1761088477882,1.43339,3901.5,3901.4,0.6736]
[1761088478081,1.43339,3901.5,3901.4,0.67689946]
[1761088478283,1.43339,3901.5,3901.4,0.95479946]
[1761088478581,1.02079,3901.5,3901.4,0.95479946]
[1761088479081,0.5596,3901.5,3901.4,0.95479946]
[1761088483687,0.5596,3901.5,3901.4,0.95579946]
[1761088484593,0.46119,3901.5,3901.4,0.95579946]
[1761088484790,0.73309,3901.5,3901.4,0.95579946]
[1761088486586,0.46119,3901.5,3901.4,0.95579946]
[1761088486785,2.30524,3902.8,3901.4,0.95579946]
[1761088486786,3.94081,3902.2,3902.1,0.9515]
[1761088487092,0.46104,3902.8,3902.7,0.3952]
[1761088487289,0.46104,3902.8,3902.7,0.9515]
[1761088487491,0.73294,3902.8,3902.7,0.9515]
[1761088488197,1.43324,3902.8,3902.7,0.9515]
[1761088488499,1.43324,3902.8,3902.7,0.6736]
[1761088488992,1.43324,3902.8,3902.7,0.9515]
[1761088489995,1.02064,3902.8,3902.7,0.9515]
[1761088490296,1.43324,3902.8,3902.7,0.9515]
[1761088490696,1.02064,3902.8,3902.7,0.9515]
[1761088490895,0.46106,3902.6,3902.5,0.8433]
[1761088491087,1.38706,3902.6,3902.5,1.1295]
[1761088491288,1.01561,3902.2,3902.1,0.9591]
[1761088491495,0.46111,3902.2,3902.1,0.9591]
[1761088492198,0.72651,3902.2,3902.1,0.9591]
[1761088492798,1.01561,3902.2,3902.1,0.9591]
[1761088493105,1.38711,3902.2,3902.1,0.9591]
[1761088493594,0.46111,3902.2,3902.1,0.9591]
[1761088495404,1.01561,3902.2,3902.1,0.9591]
[1761088496602,1.38711,3902.2,3902.1,0.9591]
[1761088497002,1.01561,3902.2,3902.1,0.9591]
[1761088497498,1.38711,3902.2,3902.1,0.9591]
[1761088497900,1.01561,3902.2,3902.1,0.9591]
[1761088498402,1.38711,3902.2,3902.1,0.6729]
[1761088498598,3.5793,3902.4,3901.9,0.9591]
[1761088498802,4.59489,3902.4,3902.3,0.9591]
[1761088499302,4.59489,3902.4,3902.3,0.6729]
[1761088499498,4.59489,3902.4,3902.3,0.4049]
[1761088499899,1.38712,3902.1,3902.0,0.4049]
[1761088500298,4.36053,3902.4,3901.8,1.37670856]
[1761088500299,1.38715,3901.9,3901.8,0.6729]
[1761088500496,0.3715,3901.8,3901.7,1.37670856]
[1761088500696,0.83267,3901.7,3901.6,1.37670856]
[1761088500904,1.38717,3901.7,3901.6,1.37670856]
[1761088501100,1.38717,3901.7,3901.4,5.14300802]
[1761088501101,0.46119,3901.5,3901.4,5.14300802]
[1761088501413,1.47319,3901.5,3901.4,0.00429946]
[1761088501600,1.38719,3901.5,3901.4,0.40919946]
[1761088501906,1.38724,3901.1,3901.0,3.2078]
[1761088502096,1.01569,3901.5,3901.4,0.9591]
[1761088502408,0.72656,3901.8,3901.7,0.9591]
[1761088502605,0.72656,3901.8,3901.1,1.83994854]
[1761088502606,1.15296,3901.6,3901.2,0.5542]
[1761088502811,1.38722,3901.3,3901.2,0.27125896]
[1761088503307,0.72662,3901.3,3901.2,0.96235896]
[1761088503508,1.01572,3901.3,3901.2,0.96235896]
[1761088503700,1.38722,3901.3,3901.2,0.96235896]
[1761088503902,1.01572,3901.3,3901.2,0.96235896]
[1761088505208,1.38722,3901.3,3901.2,0.00325896]
[1761088510515,6.38722,3901.3,3901.2,0.00325896]
[1761088510722,1.0815,3900.5,3900.4,3.2078]
[1761088510913,0.46131,3900.5,3900.4,3.8807]
[1761088511223,1.38731,3900.5,3900.4,4.1669]
[1761088511605,1.38954334,3900.5,3900.4,4.16939615]
[1761088512115,1.54504334,3900.5,3900.4,0.00249615]
[1761088514619,6.54504334,3900.5,3900.4,0.00249615]
[1761088514918,6.54504334,3900.5,3899.1,1.83843651]
[1761088514919,0.5545,3899.4,3899.0,0.4049]
[1761088515112,1.38748,3899.1,3899.0,0.6729]
[1761088515306,0.46146,3899.3,3899.0,1.1182]
[1761088515515,0.46146,3899.3,3899.2,0.9591]
[1761088515713,1.01596,3899.3,3899.2,0.96232214]
[1761088515916,40.9289,3901.0,3899.8,0.4049]
[1761088515917,3.5793,3900.3,3899.8,0.4049]
[1761088516116,0.26763334,3900.5,3900.4,0.5542]
[1761088516413,0.26763334,3900.5,3900.0,0.1591]
[1761088516414,0.5545,3900.2,3900.1,0.268]
[1761088516620,0.5545,3900.2,3900.1,0.5542]
[1761088516919,0.2654,3900.2,3900.1,0.5542]
[1761088517215,0.2654,3900.1,3900.0,0.1591]
[1761088517411,3.2078,3900.3,3900.0,0.7133]
[1761088517412,0.72675,3900.2,3900.0,0.7133]
[1761088517617,0.72675,3900.2,3900.1,0.9591]
[1761088518211,0.26763334,3900.5,3900.1,0.5542]
[1761088518520,0.26763334,3900.5,3900.0,0.1591]
[1761088518521,0.26763334,3900.5,3900.4,0.9591]
[1761088521723,0.74276,3900.1,3900.0,1.1492]
[1761088521918,0.2814,3900.1,3900.0,1.1492]
[1761088522116,3.4892,3900.3,3900.2,0.548]
[1761088522323,3.95054,3900.3,3900.2,0.986]
[1761088522622,0.74274,3900.3,3900.2,0.986]
[1761088523319,0.00223334,3900.5,3900.4,0.986]
[1761088527022,0.00223334,3900.5,3900.4,9.65512]
[1761088527218,0.46116,3901.8,3901.5,0.438]
[1761088527525,4.2123,3901.9,3901.8,0.7095]
[1761088527716,0.2791,3901.0,3900.9,1.64817662]
[1761088527921,0.5605,3901.0,3900.9,0.548]
[1761088528116,1.46575,3901.0,3900.9,0.548]
[1761088528321,1.02175,3901.0,3900.9,0.986]
[1761088528530,1.468807,3901.0,3900.9,0.986]
[1761088528832,1.468807,3901.0,3900.9,0.7095]
[1761088529333,1.024807,3901.0,3900.9,0.986]
[1761088529832,1.0218,3900.6,3900.5,0.4347]
[1761088530024,0.7427,3900.6,3900.5,0.7112]
[1761088530223,0.4613,3900.6,3900.5,0.7112]
[1761088530423,0.4613,3900.6,3900.5,1.1492]
[1761088530723,0.7427,3900.6,3900.5,1.1492]
[1761088531825,1.4658,3900.6,3900.5,0.986]
[1761088532133,1.4658,3900.6,3900.5,0.7095]
[1761088532722,1.46583,3900.3,3900.2,1.64817662]
[1761088532921,0.90536,3900.1,3899.9,1.37667662]
[1761088533227,1.46593,3899.5,3899.4,1.37667662]
[1761088533427,4.67373,3899.5,3899.4,2.08617662]
[1761088533629,4.67373,3899.5,3899.4,0.7095]
[1761088533827,1.46595,3899.3,3899.2,1.37989876]
[1761088534027,1.46595,3899.3,3899.2,0.71272214]
[1761088534836,1.02195,3899.3,3899.2,0.98922214]
[1761088535037,0.74285,3899.3,3899.2,2.36589876]
[1761088535430,1.46595,3899.3,3899.2,0.00322214]
[1761088535634,1.46595,3899.3,3899.2,0.71272214]
[1761088536227,0.74285,3899.3,3899.2,0.98922214]
[1761088536636,1.02195,3899.3,3899.2,0.98922214]
[1761088538432,0.2814,3899.3,3899.2,0.98922214]
[1761088538638,3.66923,3899.5,3899.4,0.548]
[1761088538831,3.66923,3899.5,3899.4,0.986]
[1761088539438,0.46143,3899.5,3899.4,0.986]
[1761088540131,0.74283,3899.5,3899.4,0.986]
[1761088540737,1.02193,3899.5,3899.4,0.986]
[1761088541333,0.5605,3899.5,3899.4,0.986]
[1761088541738,1.0045,3899.5,3899.4,0.986]
[1761088542437,1.0045,3899.3,3899.2,0.44122214]
[1761088543040,1.0045,3899.3,3899.2,0.71272214]
[1761088545445,0.5605,3899.3,3899.2,0.98922214]
[1761088545643,1.0045,3899.3,3899.2,0.98922214]
[1761088545847,1.0045,3899.3,3899.2,0.71272214]
[1761088546237,1.0045,3899.3,3899.2,0.98922214]
[1761088546437,1.0045,3899.3,3899.2,0.00322214]
[1761088546634,0.444,3898.6,3898.5,0.438]
[1761088546946,4.2123,3898.6,3898.5,0.438]
[1761088547146,0.74299,3898.1,3898.0,2.08787662]
[1761088547443,0.74299,3898.1,3898.0,0.7112]
[1761088547645,1.02450071,3898.1,3898.0,1.15207654]
[1761088548351,1.46850071,3898.1,3898.0,0.98887654]
[1761088549348,1.02450071,3898.1,3898.0,1.15207654]
[1761088549536,0.00241071,3898.1,3898.0,1.15207654]
[1761088551148,0.28381071,3898.1,3898.0,1.14657654]
[1761088551348,0.00241071,3898.1,3898.0,1.14657654]
[1761088551847,3.2078,3898.6,3898.5,1.0945]
[1761088552551,3.2078,3899.1,3898.5,1.55605]
[1761088552851,3.7547,3899.1,3899.0,1.0945]
[1761088553053,4.15581716,3899.1,3899.0,0.6499]
[1761088553352,0.2641,3898.7,3898.6,0.9337]
[1761088553651,0.9455,3898.7,3898.6,0.9337]
[1761088553850,0.2641,3898.7,3898.6,0.9337]
[1761088554655,0.5469,3898.7,3898.6,0.9337]
[1761088554857,3.7547,3898.7,3898.6,0.9337]
[1761088555156,1.00847,3898.3,3898.2,0.9337]
[1761088555348,1.40707,3898.3,3898.2,0.9337]
[1761088555745,1.00847,3898.3,3898.2,0.9337]
[1761088555945,3.4719,3898.7,3898.2,0.5425]
[1761088556157,4.21622,3898.7,3898.6,0.9337]
[1761088556355,4.61482,3898.7,3898.6,0.6499]
[1761088556649,4.61482,3898.7,3898.6,0.3912]
[1761088556847,0.46159,3898.1,3898.0,2.08525316]
[1761088557048,0.72569,3898.1,3898.0,2.08525316]
[1761088557350,0.72569,3898.1,3898.0,1.09977654]
[1761088558252,1.00849,3898.1,3898.0,1.09977654]
[1761088558455,0.2641,3898.1,3898.0,1.09977654]
[1761088559156,0.5469,3898.1,3898.0,1.09977654]
[1761088559348,0.9455,3898.1,3898.0,2.47645316]
[1761088559548,0.5469,3898.1,3898.0,2.47645316]
[1761088559748,0.5469,3898.1,3898.0,1.09977654]
[1761088559943,0.46159,3898.2,3898.1,0.3912]
[1761088560248,1.00849,3898.2,3898.1,0.9337]
[1761088560454,1.40709,3898.2,3898.1,0.6499]
[1761088561244,1.40709,3898.2,3898.1,0.9337]
[1761088561445,1.00849,3898.2,3898.1,0.9337]
[1761088561849,1.40709,3898.2,3898.1,0.9337]
[1761088562059,0.9455,3898.1,3898.0,0.00287654]
[1761088562258,1.40709,3898.1,3898.0,0.39407654]
[1761088562466,1.40709,3898.1,3898.0,0.00287654]
[1761088562859,6.40709,3898.1,3898.0,0.00287654]
[1761088564370,0.46165,3897.6,3897.5,0.3912]
[1761088564568,1.40718,3897.4,3897.3,0.6499]
[1761088565464,1.40718,3897.4,3897.3,0.65322788]
[1761088565661,1.40718,3897.4,3897.3,0.00332788]
[1761088567168,6.40718,3897.4,3897.3,0.00332788]
[1761088567557,1.40727,3896.6,3896.5,0.8107]
[1761088567768,1.40727,3896.6,3896.1,0.6499]
[1761088567769,0.9455,3896.2,3896.1,0.6499]
[1761088568059,4.1533,3896.2,3896.1,0.9337]
[1761088568470,4.15593393,3896.2,3896.1,0.93627897]
[1761088568770,4.15593393,3896.2,3896.1,0.00257897]
[1761088569160,4.15593393,3896.2,3896.1,8.97e-06]
[1761088569473,9.15593393,3896.2,3896.1,8.97e-06]
[1761088569772,0.46195,3895.1,3895.0,1.0945]
[1761088570167,0.72605,3895.1,3895.0,1.0945]
[1761088570366,1.00885,3895.1,3895.0,1.0945]
[1761088570564,1.40745,3895.1,3895.0,0.675]
[1761088570761,1.40751,3894.6,3894.5,0.6499]
[1761088571071,4.61531,3894.6,3894.5,0.00289572]
[1761088573666,4.21671,3894.6,3894.5,0.93659572]
[1761088573963,3.2078,3895.5,3895.2,0.5425]
[1761088574170,0.46189,3895.7,3895.4,0.3912]
[1761088574361,0.46189,3895.7,3895.6,0.3912]
[1761088574559,0.46189,3895.7,3895.0,0.1608]
[1761088574560,0.46195,3895.1,3895.0,0.552]
[1761088574872,0.46194,3895.2,3895.1,0.3912]
[1761088575964,0.3986,3895.1,3894.7,0.3912]
[1761088576168,0.46199,3894.8,3894.7,0.3912]
[1761088576474,0.86059,3894.8,3894.7,0.3912]
[1761088576874,0.86061,3894.6,3894.5,0.39409572]
[1761088577667,0.46201,3894.6,3894.5,0.39409572]
[1761088577867,3.66981,3894.6,3894.5,0.39409572]
[1761088578780,0.46201,3894.6,3894.5,0.39409572]
[1761088579075,0.462,3894.7,3894.6,0.1608]
[1761088579465,0.462,3894.7,3894.6,0.3515]
[1761088580276,0.8029,3894.7,3894.6,0.3515]
[1761088580875,0.8029,3894.7,3894.5,0.35479572]
[1761088580876,0.3661,3894.6,3894.5,0.35479572]
[1761088581077,0.462,3894.7,3894.6,0.3519]
[1761088581870,0.6981,3894.7,3894.6,0.8047]
[1761088582071,0.462,3894.7,3894.6,0.8047]
[1761088582470,0.46194,3895.2,3895.1,0.8047]
[1761088582670,0.93784,3895.2,3895.1,0.577]
[1761088582876,1.30394,3895.2,3895.1,0.3519]
[1761088583070,0.4759,3894.9,3894.8,0.2251]
[1761088583372,0.4759,3894.9,3894.8,0.577]
[1761088583373,1.30397,3894.9,3894.8,0.577]
[1761088583677,0.93787,3894.9,3894.8,0.577]
[1761088584577,0.46201,3894.6,3894.5,0.36529572]
[1761088584783,0.69811,3894.6,3894.5,0.59299572]
[1761088585278,0.69811,3894.6,3894.5,0.94489572]
[1761088586073,0.69811,3894.6,3894.5,0.35479572]
[1761088586074,1.30401,3894.6,3894.5,0.35479572]
[1761088586279,1.30401,3894.6,3894.5,0.00289572]
[1761088587280,0.93791,3894.6,3894.5,0.94489572]
[1761088587475,1.30401,3894.6,3894.5,0.94489572]
[1761088587677,1.30401,3894.6,3894.5,0.57989572]
[1761088589279,1.30401,3894.6,3894.5,0.00289572]
[1761088591185,1.30401,3894.6,3894.5,0.35479572]
[1761088593488,1.30401,3894.6,3894.5,0.00289572]
[1761088595390,1.30408,3894.0,3893.9,0.3519]
[1761088595592,4.51188,3894.0,3893.9,0.3519]
[1761088595891,0.69823,3893.6,3893.5,0.6136]
[1761088596186,0.69823,3893.6,3893.5,0.9655]
[1761088596384,0.69823,3893.6,3893.5,0.96760694]
[1761088596780,0.93803,3893.6,3893.5,0.96760694]
[1761088599390,1.30413,3893.6,3893.5,0.57910694]
[1761088599588,1.30413,3893.6,3893.5,0.00210694]
[1761088599589,4.51193,3893.6,3893.5,0.00210694]
[1761088601388,4.51193,3893.6,3893.5,0.57910694]
[1761088601592,4.51193,3893.6,3893.5,0.71640694]
[1761088601890,4.14583,3893.6,3893.5,0.94410694]
[1761088602090,0.46213,3893.6,3893.5,0.94410694]
[1761088602292,0.69823,3893.6,3893.5,0.94410694]
[1761088602686,0.93803,3893.6,3893.5,0.94410694]
[1761088605396,1.30413,3893.6,3893.5,0.94410694]
[1761088605786,1.30413,3893.6,3893.5,0.00210694]
[1761088606089,4.51193,3893.6,3893.5,0.00210694]
[1761088606288,1.30413,3893.6,3893.5,0.57910694]
[1761088606490,0.93803,3893.6,3893.5,0.94410694]
[1761088606987,4.51193,3893.6,3893.5,0.94410694]
[1761088607186,4.51193,3893.6,3893.5,0.57910694]
[1761088607585,4.14583,3893.6,3893.5,0.94410694]
[1761088608191,3.90603,3893.6,3893.5,0.94410694]
[1761088608385,0.46213,3893.6,3893.5,0.94410694]
[1761088608597,0.69823,3893.6,3893.5,0.94410694]
[1761088609895,0.46212,3893.7,3893.6,0.8047]
[1761088610090,3.2078,3894.9,3894.8,0.8047]
[1761088610289,3.66977,3894.9,3894.8,0.8047]
[1761088610492,4.14567,3894.9,3894.8,0.8047]
[1761088611093,0.3377,3894.8,3894.2,1.69977662]
[1761088611295,1.26827,3894.1,3894.0,0.4604]
[1761088611499,4.47607,3894.1,3894.0,0.4604]
[1761088611692,4.47607,3894.1,3894.0,0.5518]
[1761088611894,0.93063,3893.6,3893.5,0.59390694]
[1761088612592,1.26833,3893.6,3893.5,0.91700694]
[1761088612792,0.93063,3893.6,3893.5,0.91700694]
[1761088613794,0.68643,3893.6,3893.5,0.91700694]
[1761088614095,0.3377,3893.9,3893.5,0.91700694]
[1761088614096,4.13837,3894.1,3894.0,0.9073]
[1761088614492,3.66987,3894.1,3894.0,0.9073]
[1761088614797,0.68637,3894.1,3894.0,0.9073]
[1761088614996,0.79983,3893.6,3893.5,0.00210694]
[1761088615193,1.26833,3893.6,3893.5,0.00210694]
[1761088615389,1.26833,3893.6,3893.5,0.55390694]
[1761088615790,1.26833,3893.6,3893.5,0.32520694]
[1761088617503,6.26833,3893.6,3893.5,0.00210694]
[1761088618494,1.26833,3893.6,3893.5,0.00210694]
[1761088621600,6.26833,3893.6,3893.5,0.00210694]
[1761088621802,0.46228,3892.3,3892.2,0.5518]
[1761088622007,4.47628,3892.3,3892.2,0.5518]
[1761088622199,4.47628,3892.3,3892.0,0.3231]
[1761088622200,1.26851,3892.1,3892.0,0.3231]
[1761088622804,1.27109062,3892.1,3892.0,0.3257635]
[1761088623307,0.24678062,3892.1,3892.0,0.9099635]
[1761088623501,1.0745,3892.6,3892.5,0.5842]
[1761088623696,1.0745,3892.6,3892.5,0.9073]
[1761088624610,1.07714164,3892.6,3892.5,0.9073]
[1761088625107,1.07714164,3892.6,3892.5,10.95066883]
[1761088625408,3.2078,3893.7,3893.6,0.5518]
[1761088625409,4.47612,3893.7,3893.6,0.5518]
[1761088626106,4.13842,3893.7,3893.6,0.7776]
[1761088626407,4.14032626,3893.7,3893.6,0.7776]
[1761088626800,3.20970626,3893.7,3893.6,0.7776]
[1761088627103,3.43400626,3893.7,3893.6,0.7776]
[1761088627303,3.20970626,3893.7,3893.6,0.7776]
[1761088627498,1.551,3894.0,3893.9,0.4545]
[1761088627699,1.551,3894.0,3893.9,0.7776]
[1761088627910,3.2078,3894.1,3894.0,0.9073]
[1761088628110,0.46205,3894.3,3894.2,0.7776]
[1761088628303,0.46203,3894.5,3894.4,0.4545]
[1761088628504,0.46203,3894.5,3894.4,0.7776]
[1761088628699,0.46411991,3894.5,3894.4,0.7776]
[1761088628906,0.68841991,3894.5,3894.4,0.7776]
[1761088629209,0.46207,3894.1,3894.0,0.5842]
[1761088629400,0.68641,3893.8,3893.7,0.2287]
[1761088629810,0.93061,3893.8,3893.7,0.5518]
[1761088630004,0.68641,3893.8,3893.7,0.7776]
[1761088630205,0.46208,3894.0,3893.8,0.3231]
[1761088630416,0.68638,3894.0,3893.9,0.7776]
[1761088630810,0.93058,3894.0,3893.9,0.7776]
[1761088631007,0.2243,3894.0,3893.9,0.7776]
[1761088631213,0.46208,3894.1,3894.0,0.9073]
[1761088632010,0.68638,3894.1,3894.0,0.9073]
[1761088632416,4.76206,3894.2,3894.1,0.3231]
[1761088632617,0.46206,3894.2,3894.1,0.7776]
[1761088633509,0.00208991,3894.5,3894.4,0.4545]
[1761088633714,0.68840991,3894.5,3894.4,0.7776]
[1761088633909,0.00208991,3894.5,3894.4,0.7776]
[1761088634105,0.00208991,3894.5,3894.4,5.7776]
[1761088634311,3.66972,3895.4,3894.7,1.2396]
[1761088634510,3.2078,3895.4,3894.7,1.2396]
[1761088634710,3.2078,3895.4,3894.7,6.2396]
[1761088634920,0.46195,3895.1,3894.7,6.2396]
[1761088635112,1.80315,3895.2,3894.7,6.2396]
[1761088635416,1.43467902,3894.8,3894.7,6.2396]
[1761088635611,1.43467902,3894.8,3894.7,0.7776]
[1761088635825,1.65897902,3894.8,3894.7,0.7776]
[1761088636011,1.43467902,3894.8,3894.7,0.7776]
[1761088636519,1.43467902,3894.8,3894.7,5.7776]
[1761088637112,1.43467902,3894.8,3894.7,0.7776]
[1761088637314,1.43467902,3894.8,3894.7,5.7776]
[1761088637813,1.10522225,3894.8,3894.7,9.08563349]
[1761088638124,0.4619,3895.6,3895.5,0.4545]
[1761088638311,3.5455,3895.9,3895.6,0.3231]
[1761088638312,0.3377,3895.8,3895.6,0.3231]
[1761088638512,3.2078,3895.9,3895.8,0.3231]
[1761088638821,3.5455,3895.9,3895.8,0.7776]
[1761088639020,3.5455,3895.9,3895.8,0.77945421]
[1761088639021,3.77236622,3895.9,3895.8,0.77945421]
[1761088639318,3.21036622,3895.9,3895.8,0.77945421]
[1761088639821,0.00256622,3895.9,3895.8,0.77945421]
[1761088640316,0.00256622,3895.9,3895.8,5.98728505]
[1761088640617,0.00256622,3895.9,3895.8,9.32430906]
[1761088641709,1.6587,3896.2,3896.1,0.4821]
[1761088641919,1.6587,3896.2,3896.1,4.51183]
[1761088642111,0.125,3897.0,3896.1,4.51183]
[1761088642112,0.46174,3896.9,3896.6,0.3601]
[1761088642310,3.2078,3897.3,3897.0,0.3601]
[1761088642512,0.148,3899.0,3897.3,0.82179]
[1761088642513,3.8137,3897.8,3897.3,0.82179]
[1761088642721,3.23275817,3897.8,3897.7,0.8422]
[1761088643120,0.60885817,3897.8,3897.7,3.76763735]
[1761088643325,1.31168817,3897.8,3897.7,0.231]
[1761088643524,1.31168817,3897.8,3897.7,0.8422]